bitfinex-derivatives/quotes_ETHF0:USTF0_20240927
["timestamp","ask_amount","ask_price","bid_price","bid_amount"]
[1727410958726,0.37762,2647.8,2647.6,1.36]
[1727410958927,0.37762,2647.8,2647.7,0.7863]
[1727410960529,0.3703,2647.9,2647.7,0.7863]
[1727410961037,0.7479,2647.9,2647.7,0.7863]
[1727410961227,0.7479,2647.9,2647.8,2.82377619]
[1727410961432,0.7479,2647.9,2647.8,2.82387889]
[1727410962126,0.7479,2647.9,2647.8,2.82389646]
[1727410963332,0.7479,2647.9,2647.8,1.84619334]
[1727410963532,0.7479,2647.9,2647.8,3.30992315]
[1727410965832,0.7479,2647.9,2647.8,3.31045314]
[1727410967329,0.7479,2647.9,2647.8,0.97967169]
[1727410969334,0.37763,2647.7,2647.5,2.33967169]
[1727410969643,0.37762,2647.8,2647.5,2.33967169]
[1727410969843,0.37763,2647.7,2647.5,2.33967169]
[1727410970338,0.37764,2647.6,2647.5,2.33967169]
[1727410971637,0.37763,2647.7,2647.5,6.98361736]
[1727410971842,0.37763,2647.7,2647.6,2.33964804]
[1727410972533,0.37763,2647.7,2647.6,1.36]
[1727410973437,0.37763,2647.7,2647.6,2.33964804]
[1727410974144,0.37763,2647.7,2647.6,1.36]
[1727410974338,0.37763,2647.7,2647.6,2.33964804]
[1727410975838,0.37762,2647.7,2647.6,2.33964804]
[1727410976237,0.37762,2647.7,2647.6,8.8532492]
[1727410976442,0.37762,2647.7,2647.6,8.85324797]
[1727410977040,0.37762,2647.7,2647.6,5.15884248]
[1727410977847,0.37762,2647.7,2647.6,8.85438786]
[1727410979243,0.4798,2647.9,2647.6,8.85438786]
[1727410979244,0.37762,2647.8,2647.6,8.85438786]
[1727410979454,0.4798,2647.9,2647.7,5.54513452]
[1727410979455,0.1095,2647.9,2647.7,5.54513452]
[1727410979647,0.1095,2647.9,2647.8,6.90513452]
[1727410979841,0.1095,2647.9,2647.8,7.31533452]
[1727410980046,0.1095,2647.9,2647.8,11.09213452]
[1727410980246,0.1095,2647.9,2647.8,13.5316842]
[1727410980749,0.7744,2648.3,2647.8,9.24373221]
[1727410980750,1.15194,2648.3,2647.8,9.24373221]
[1727410980945,1.15194,2648.3,2648.2,2.8299636]
[1727410981247,1.15194,2648.3,2648.2,4.6783297]
[1727410981445,1.15194,2648.3,2648.2,3.2083661]
[1727410981642,0.7744,2648.3,2648.2,4.6783297]
[1727410981844,0.7744,2648.3,2648.2,13.0783297]
[1727410982045,3.2078,2648.8,2648.2,24.63055048]
[1727410982247,3.2078,2648.8,2648.7,1.36]
[1727410982448,3.2078,2648.8,2648.7,2.33926301]
[1727410982648,3.2078,2648.8,2648.7,3.12606301]
[1727410983251,3.2078,2648.8,2648.7,2.1468]
[1727410984155,3.58527,2648.8,2648.7,2.1468]
[1727410985454,3.2078,2648.8,2648.7,2.1468]
[1727410986055,3.58527,2648.8,2648.7,2.1468]
[1727410987255,3.2078,2648.8,2648.7,2.1468]
[1727410987655,1.51374,2649.1,2648.7,2.1468]
[1727410987851,1.51373,2649.1,2649.0,1.36]
[1727410988059,0.75513,2649.1,2649.0,1.36]
[1727410988459,0.3777,2649.1,2649.0,1.36]
[1727410988654,3.58522,2649.2,2649.0,1.36]
[1727410988959,3.58522,2649.2,2649.1,1.36]
[1727410989165,3.2078,2649.2,2649.1,1.36]
[1727410989460,0.7768,2649.3,2649.1,1.36]
[1727410989664,0.7768,2649.3,2649.2,0.3775]
[1727410989961,3.2078,2649.6,2649.2,0.3775]
[1727410990259,3.2078,2649.6,2649.5,1.36]
[1727410991163,0.3787,2649.7,2649.5,1.36]
[1727410991353,0.75604,2649.7,2649.5,1.36]
[1727410991548,0.75604,2649.7,2649.6,0.3976]
[1727410993259,0.3787,2649.7,2649.6,0.3976]
[1727410994662,0.37733,2649.8,2649.6,0.3976]
[1727410994858,0.37734,2649.7,2649.6,0.3976]
[1727410995066,0.37733,2649.8,2649.6,0.3976]
[1727410995765,0.3844,2649.9,2649.7,2.95]
[1727410995961,0.37733,2649.8,2649.7,3.3558]
[1727410996672,0.3844,2649.9,2649.7,3.3558]
[1727410996673,0.76172,2649.9,2649.7,3.3558]
[1727410996857,0.37733,2649.8,2649.7,3.3558]
[1727410998264,0.76171,2649.9,2649.7,3.3558]
[1727410998860,0.37733,2649.8,2649.7,3.3558]
[1727410999460,4.15093,2649.8,2649.5,2.95]
[1727410999660,0.37733,2649.8,2649.5,2.95]
[1727411000664,0.48683,2649.8,2649.5,2.95]
[1727411001262,0.37735,2649.7,2649.5,2.95]
[1727411005659,0.37735,2649.7,2649.6,8.4]
[1727411007681,0.48683,2649.8,2649.6,8.4]
[1727411007874,0.48684,2649.8,2649.6,8.4]
[1727411008179,0.48684,2649.8,2649.7,2.95]
[1727411012972,0.37734,2649.8,2649.7,2.95]
[1727411014374,0.37734,2649.8,2649.7,1.36]
[1727411020185,3.96952,2649.9,2649.7,1.36]
[1727411020384,0.37733,2649.8,2649.7,1.36]
[1727411028482,9.7736,2649.8,2648.9,4.131]
[1727411028680,0.37743,2649.1,2649.0,1.448]
[1727411028985,3.2078,2649.2,2648.9,8.7776]
[1727411028986,0.37744,2649.0,2648.9,8.7776]
[1727411029187,0.37744,2649.0,2648.9,0.3776]
[1727411029783,0.37744,2649.0,2648.9,8.7776]
[1727411030483,0.77,2649.1,2648.9,10.1376]
[1727411031092,1.14743,2649.1,2648.9,10.1376]
[1727411031388,3.2078,2649.5,2649.0,3.7752]
[1727411031593,3.2078,2649.5,2649.4,1.36]
[1727411031791,3.58518,2649.5,2649.4,1.36]
[1727411032088,3.58518,2649.5,2649.0,0.97116451]
[1727411032089,3.2078,2649.5,2649.0,0.97116451]
[1727411032294,3.2078,2649.5,2649.4,1.36]
[1727411032493,3.58517,2649.5,2649.4,1.36]
[1727411033585,3.2078,2649.5,2649.4,1.36]
[1727411033785,3.58517,2649.5,2649.4,1.36]
[1727411034592,3.2078,2649.5,2649.4,1.36]
[1727411034987,3.2078,2649.5,2649.4,1.7472]
[1727411038087,3.2078,2649.5,2649.4,2.1433]
[1727411039297,0.1095,2649.8,2649.4,9.1255]
[1727411039491,0.1095,2649.8,2649.7,1.36]
[1727411039984,0.48683,2649.8,2649.7,1.36]
[1727411040190,0.1095,2649.8,2649.4,1.75446451]
[1727411040401,0.37737,2649.5,2649.4,2.1433]
[1727411040599,0.37741,2649.2,2649.1,2.1329]
[1727411040791,0.37741,2649.2,2649.1,1.7396]
[1727411041092,0.37741,2649.2,2649.1,1.36]
[1727411041293,5.31313,2649.2,2648.8,2.13746451]
[1727411041496,0.37745,2648.9,2648.8,0.3796]
[1727411042687,0.37745,2648.9,2648.8,1.7396]
[1727411043795,0.37745,2649.0,2648.8,1.7396]
[1727411043997,0.37743,2649.1,2648.9,1.36]
[1727411044303,1.53922,2649.2,2649.0,2.95]
[1727411044501,1.14042,2649.2,2649.0,2.95]
[1727411044886,0.3774,2649.3,2649.0,2.95]
[1727411045096,3.2078,2649.5,2649.3,2.95]
[1727411045300,3.2078,2649.5,2649.4,3.3402]
[1727411045301,0.37737,2649.5,2649.4,3.3402]
[1727411045493,0.37736,2649.6,2649.4,0.3902]
[1727411045686,0.37736,2649.6,2649.4,3.3402]
[1727411045886,0.37737,2649.5,2649.4,3.3402]
[1727411046290,0.37736,2649.6,2649.4,3.3402]
[1727411048198,0.37735,2649.7,2649.5,3.3494]
[1727411049203,0.37734,2649.7,2649.5,3.3494]
[1727411049391,0.37734,2649.7,2649.6,8.4]
[1727411049789,3.2078,2649.9,2649.6,8.4]
[1727411050801,3.58512,2649.9,2649.6,8.4]
[1727411050997,3.2078,2649.9,2649.7,2.95]
[1727411053404,3.58511,2649.9,2649.7,2.95]
[1727411054901,3.2078,2649.9,2649.7,2.95]
[1727411055211,3.58511,2649.9,2649.7,2.95]
[1727411056403,3.2078,2649.9,2649.7,2.95]
[1727411056901,3.58512,2649.9,2649.7,2.95]
[1727411057403,0.37732,2649.9,2649.7,2.95]
[1727411058004,0.7698,2650.0,2649.7,2.95]
[1727411058304,0.7698,2650.0,2649.6,8.8097]
[1727411058305,0.3773,2650.0,2649.9,2.95]
[1727411063513,0.37729,2650.1,2649.9,2.95]
[1727411063805,0.37729,2650.1,2650.0,0.3995]
[1727411064006,0.37729,2650.1,2650.0,0.7789]
[1727411066506,0.37729,2650.1,2650.0,2.1389]
[1727411068002,0.37728,2650.2,2650.0,2.1389]
[1727411068204,0.37728,2650.2,2650.1,1.36]
[1727411068412,4.078,2650.7,2650.1,8.3414]
[1727411068718,0.3772,2650.7,2650.6,1.36]
[1727411070310,0.3772,2650.7,2650.6,2.94]
[1727411078916,0.3968,2650.8,2650.6,2.94]
[1727411079220,0.77398,2650.8,2650.7,0.4094]
[1727411079522,0.77398,2650.8,2650.7,0.8081]
[1727411081020,0.3772,2650.7,2650.6,2.94]
[1727411087834,0.4867,2650.7,2650.6,2.94]
[1727411090329,0.4867,2650.7,2650.6,1.36]
[1727411094041,0.37721,2650.6,2650.5,1.36]
[1727411096235,0.1095,2650.7,2650.5,1.36]
[1727411096440,0.1095,2650.7,2650.6,0.3779]
[1727411096743,0.4867,2650.7,2650.6,0.3779]
[1727411097940,0.1095,2650.7,2650.6,0.3779]
[1727411098141,0.4867,2650.7,2650.6,0.3779]
[1727411100036,0.3772,2650.7,2650.6,0.3779]
[1727411100446,0.37724,2650.4,2650.3,0.8081]
[1727411100642,0.94304,2650.6,2650.3,1.36]
[1727411100846,0.94304,2650.6,2650.4,1.36]
[1727411101551,0.37723,2650.5,2650.4,1.36]
[1727411102647,3.58503,2650.5,2650.4,1.36]
[1727411102848,0.37723,2650.5,2650.4,1.36]
[1727411104050,3.58503,2650.5,2650.4,1.36]
[1727411105950,0.37723,2650.5,2650.4,1.36]
[1727411107248,3.58503,2650.5,2650.4,1.36]
[1727411108055,3.58503,2650.5,2650.1,1.85014676]
[1727411108056,0.37727,2650.2,2650.1,2.42791127]
[1727411108248,3.2078,2650.2,2649.9,1.36]
[1727411108450,3.2078,2650.2,2649.8,0.97116451]
[1727411108662,0.77748,2650.1,2650.0,1.36]
[1727411110948,0.37733,2649.8,2649.7,2.1214]
[1727411111154,3.58513,2649.8,2649.7,2.1214]
[1727411111756,3.58513,2649.8,2649.7,1.36]
[1727411112064,0.37734,2649.7,2649.6,1.36]
[1727411112259,0.3774,2649.3,2649.2,0.97116451]
[1727411112553,0.94346,2649.4,2649.0,9.76]
[1727411112554,0.37742,2649.2,2649.0,9.76]
[1727411112755,1.16362,2649.2,2649.0,9.76]
[1727411112958,0.37747,2648.8,2648.7,0.97116451]
[1727411113152,0.37748,2648.7,2648.6,1.7331]
[1727411113353,0.37748,2648.7,2648.6,1.36]
[1727411113552,3.2078,2648.8,2648.4,8.4]
[1727411113553,0.37751,2648.5,2648.4,8.4]
[1727411113750,3.2078,2648.8,2648.4,9.76]
[1727411113959,0.3775,2648.6,2648.4,9.76]
[1727411114160,3.2078,2648.8,2648.4,8.4]
[1727411114161,0.37751,2648.5,2648.4,8.4]
[1727411114461,0.37748,2648.7,2648.3,3.3231]
[1727411114660,3.2078,2648.8,2648.3,3.3231]
[1727411114867,0.37748,2648.7,2648.3,3.3231]
[1727411115160,0.3775,2648.6,2648.3,11.7231]
[1727411115367,0.37751,2648.5,2648.3,11.7231]
[1727411116156,3.58531,2648.5,2648.3,11.7231]
[1727411116561,3.2078,2648.5,2648.3,11.7231]
[1727411117366,0.4045,2648.7,2648.3,11.7231]
[1727411117367,0.37752,2648.4,2648.3,11.7231]
[1727411117662,0.37752,2648.4,2648.3,11.35]
[1727411117867,6.9838,2648.4,2647.9,3.7076]
[1727411118061,3.2078,2648.1,2647.9,3.7076]
[1727411118363,0.37758,2648.0,2647.9,0.7576]
[1727411118561,0.37758,2648.0,2647.9,0.3764]
[1727411118958,3.58537,2648.1,2647.9,3.3264]
[1727411119154,3.2078,2648.1,2648.0,2.95]
[1727411119360,3.2078,2648.1,2648.0,3.3602]
[1727411119561,2.26322326,2648.1,2648.0,7.5353]
[1727411119758,7.6903,2648.7,2648.0,7.5353]
[1727411119961,0.37751,2648.5,2648.4,2.95]
[1727411120162,7.6903,2648.7,2648.4,2.95]
[1727411120163,8.06779,2648.7,2648.4,2.95]
[1727411120571,0.3775,2648.6,2648.5,0.3811]
[1727411120964,3.2078,2648.7,2648.5,0.3811]
[1727411121164,3.2078,2648.7,2648.5,0.7824]
[1727411121772,3.58529,2648.7,2648.5,0.7824]
[1727411122462,0.3775,2648.6,2648.5,0.7824]
[1727411123061,0.37752,2648.4,2648.3,2.95]
[1727411123258,0.37752,2648.5,2648.3,2.95]
[1727411123459,3.2078,2648.7,2648.3,2.95]
[1727411124469,0.37752,2648.4,2648.3,2.95]
[1727411124969,0.37752,2648.5,2648.3,2.95]
[1727411125160,0.37752,2648.4,2648.3,2.95]
[1727411127069,0.37752,2648.5,2648.3,2.95]
[1727411127767,3.2078,2648.7,2648.3,2.95]
[1727411127967,0.37752,2648.5,2648.3,2.95]
[1727411128362,3.776,2648.4,2648.1,3.3567]
[1727411128566,1.18423,2648.4,2648.1,3.3567]
[1727411128865,0.37755,2648.3,2648.1,3.3567]
[1727411129472,1.18423,2648.4,2648.1,3.3567]
[1727411129674,0.4044,2648.4,2648.1,3.3567]
[1727411130377,0.37755,2648.2,2648.1,0.4067]
[1727411130570,0.37758,2648.0,2647.9,0.4022]
[1727411132279,0.37757,2648.1,2647.9,0.4022]
[1727411132974,0.37758,2648.0,2647.9,0.4022]
[1727411133571,0.37757,2648.1,2647.9,3.3522]
[1727411133777,0.37758,2648.1,2647.9,3.3522]
[1727411134579,0.37756,2648.2,2647.9,3.3522]
[1727411135871,0.37757,2648.1,2647.9,3.3522]
[1727411136273,0.37756,2648.2,2647.9,3.3522]
[1727411136676,3.58535,2648.3,2647.9,3.3522]
[1727411137270,0.7821,2648.6,2647.9,3.3522]
[1727411137271,0.7821,2648.6,2648.1,2.95]
[1727411137474,0.37754,2648.4,2648.2,0.3899]
[1727411137984,0.37754,2648.4,2648.3,0.3715]
[1727411138486,4.54572,2648.7,2648.3,0.3715]
[1727411138879,3.2078,2648.4,2648.3,0.3715]
[1727411139475,3.58532,2648.4,2648.3,0.3715]
[1727411140285,3.2078,2648.4,2648.3,0.3715]
[1727411140582,3.01857978,2648.4,2648.3,3.3215]
[1727411140783,2.64105978,2648.4,2648.3,0.3715]
[1727411141483,3.01857978,2648.4,2648.3,0.3715]
[1727411143082,2.64105978,2648.4,2648.3,0.3715]
[1727411143884,3.01857978,2648.4,2648.3,0.3715]
[1727411144484,2.64105978,2648.4,2648.3,0.3715]
[1727411144683,3.01857978,2648.4,2648.3,0.3715]
[1727411145687,0.37752,2648.4,2648.3,0.3715]
[1727411151189,3.58532,2648.5,2648.3,0.3715]
[1727411152191,3.2078,2648.5,2648.4,1.36]
[1727411152997,3.58531,2648.5,2648.4,1.36]
[1727411158297,3.58531,2648.5,2648.4,3.22216345]
[1727411158499,3.58531,2648.5,2648.4,4.67527088]
[1727411160705,0.37751,2648.5,2648.4,4.67527088]
[1727411167408,0.37751,2648.5,2648.4,4.6899426]
[1727411171009,0.3942,2648.7,2648.4,4.6899426]
[1727411171211,3.2078,2649.2,2648.6,3.29747658]
[1727411171417,3.58521,2649.2,2649.1,1.36]
[1727411171626,0.37743,2649.1,2649.0,0.97802725]
[1727411171922,3.2078,2649.2,2648.8,2.33802725]
[1727411171923,0.37745,2648.9,2648.8,2.33802725]
[1727411172219,0.37747,2648.8,2648.7,1.76582725]
[1727411172514,0.3775,2648.6,2648.5,0.97802725]
[1727411173309,0.37751,2648.5,2648.4,0.97802725]
[1727411173614,0.37754,2648.3,2648.2,2.33802725]
[1727411173820,0.37753,2648.4,2648.2,1.36]
[1727411174120,0.37753,2648.4,2648.2,2.33802725]
[1727411174322,0.74782,2648.5,2648.2,2.33802725]
[1727411174517,0.74782,2648.5,2648.3,0.3884]
[1727411174817,0.85732,2648.5,2648.3,0.3884]
[1727411175019,0.85732,2648.5,2648.3,0.772]
[1727411177125,0.37752,2648.4,2648.1,0.97802725]
[1727411177321,0.75754,2648.3,2648.1,0.97802725]
[1727411177624,0.75754,2648.3,2648.0,1.76592725]
[1727411177625,3.2078,2648.2,2648.0,1.76592725]
[1727411178017,0.4056,2648.1,2648.0,1.76592725]
[1727411178218,0.4056,2648.1,2648.0,0.7879]
[1727411178219,0.78317,2648.1,2648.0,0.7879]
[1727411179528,0.37758,2648.0,2647.9,0.97802725]
[1727411179718,0.37758,2648.0,2647.9,3.33643899]
[1727411180521,4.15438,2648.0,2647.9,3.33643899]
[1727411180728,4.15438,2648.0,2647.9,1.86815195]
[1727411181025,4.15438,2648.0,2647.9,0.97892638]
[1727411181714,4.15438,2648.0,2647.9,2.84701589]
[1727411182119,4.15438,2648.0,2647.9,0.97892638]
[1727411184428,0.37758,2648.0,2647.9,0.97892638]
[1727411184622,0.78317,2648.1,2647.9,0.97892638]
[1727411184922,0.37757,2648.1,2647.9,2.33892638]
[1727411185430,0.37758,2648.0,2647.9,2.33892638]
[1727411185620,0.37758,2648.0,2647.9,4.20589443]
[1727411186224,0.37758,2648.1,2647.9,2.33892638]
[1727411186618,0.37758,2648.0,2647.9,2.33892638]
[1727411187320,0.37758,2648.0,2647.9,1.36]
[1727411187519,0.37758,2648.0,2647.8,2.33892638]
[1727411188229,0.37758,2648.0,2647.9,8.4]
[1727411193632,3.7768,2648.0,2647.7,0.97892638]
[1727411193930,3.7768,2648.0,2647.4,3.2078]
[1727411193931,0.37765,2647.5,2647.4,0.3967]
[1727411194140,0.3777,2647.2,2647.1,4.67608704]
[1727411194339,0.37772,2647.0,2646.9,2.21628704]
[1727411194527,0.37772,2647.1,2646.9,4.0826536]
[1727411194727,0.37772,2647.1,2647.0,1.87105366]
[1727411195228,0.37772,2647.1,2646.9,2.21628704]
[1727411195229,0.37772,2647.0,2646.7,1.46828704]
[1727411195536,0.391,2647.3,2646.9,1.36]
[1727411195537,0.7735,2647.2,2646.9,1.36]
[1727411195733,0.7735,2647.2,2647.0,0.3984]
[1727411196532,0.3777,2647.2,2647.0,1.7584]
[1727411197834,0.3777,2647.2,2647.0,0.3984]
[1727411198034,0.37771,2647.1,2647.0,0.3984]
[1727411199034,0.3777,2647.2,2647.0,0.3984]
[1727411199234,0.391,2647.3,2647.0,0.3984]
[1727411199434,0.37771,2647.1,2647.0,0.3984]
[1727411201533,0.3777,2647.2,2647.0,0.3984]
[1727411202142,0.3777,2647.2,2647.1,8.4]
[1727411203141,0.3777,2647.2,2647.0,0.3984]
[1727411203447,3.58551,2647.1,2647.0,0.3984]
[1727411203951,0.37773,2647.0,2646.8,0.748]
[1727411204441,0.3925,2647.0,2646.8,0.748]
[1727411205738,4.5678,2647.1,2646.8,0.748]
[1727411205938,3.2078,2647.1,2647.0,1.36]
[1727411206443,3.2078,2647.1,2646.9,1.36]
[1727411217058,3.2078,2647.1,2647.0,1.36]
[1727411217260,3.2078,2647.1,2646.9,1.36]
[1727411218062,3.2078,2647.1,2646.8,0.748]
[1727411218258,4.5678,2647.1,2646.8,0.748]
[1727411219769,3.2078,2647.1,2646.8,0.748]
[1727411225560,3.9894,2647.2,2646.8,0.748]
[1727411232576,3.2078,2647.1,2646.8,0.748]
[1727411233079,3.3173,2647.1,2646.8,0.748]
[1727411233468,3.3173,2647.1,2646.8,0.3729]
[1727411236172,3.3173,2647.1,2646.8,1.84118704]
[1727411237179,3.3173,2647.1,2646.9,1.87553422]
[1727411237382,4.6773,2647.1,2646.8,1.84118704]
[1727411237879,0.37772,2647.0,2646.8,1.84118704]
[1727411238079,0.37774,2646.9,2646.8,1.84118704]
[1727411238276,0.37774,2646.9,2646.8,2.2494403]
[1727411238277,0.78164,2646.9,2646.8,2.2494403]
[1727411238873,0.78164,2646.9,2646.8,2.24948518]
[1727411239278,0.78164,2646.9,2646.8,7.94283638]
[1727411240181,0.78164,2646.9,2646.8,2.24948518]
[1727411241176,0.78164,2646.9,2646.8,4.18696176]
[1727411241379,0.78164,2646.9,2646.8,1.87658518]
[1727411241775,0.78164,2646.9,2646.8,3.34959384]
[1727411242883,4.56004,2646.9,2646.8,3.34959384]
[1727411243285,4.1823,2646.9,2646.8,3.34959384]
[1727411243477,4.56004,2646.9,2646.8,3.34959384]
[1727411245990,4.56004,2646.9,2646.8,1.87658518]
[1727411246188,0.37777,2646.7,2646.6,1.47300866]
[1727411246488,0.37777,2646.7,2646.6,3.35454218]
[1727411246690,4.15617,2646.7,2646.6,3.35454218]
[1727411246998,4.15617,2646.7,2646.4,2.72937658]
[1727411246999,0.3778,2646.5,2646.4,1.47300866]
[1727411247186,4.9456,2646.5,2646.4,3.36227207]
[1727411247388,8.724,2646.5,2646.4,3.36227207]
[1727411247596,9.1035,2646.5,2646.4,3.3622435]
[1727411248204,9.1035,2646.5,2646.4,3.3620853]
[1727411249293,9.1035,2646.5,2646.4,3.36370363]
[1727411250292,9.1035,2646.5,2646.4,1.8905775]
[1727411251392,0.37781,2646.4,2646.3,1.47312613]
[1727411251591,0.37781,2646.4,2646.3,3.36373061]
[1727411251804,4.9473,2646.5,2646.3,3.36373061]
[1727411252090,0.37781,2646.4,2646.3,1.47312613]
[1727411252291,5.3251,2646.5,2646.3,3.36232375]
[1727411252497,2.1173,2646.5,2646.4,1.88918303]
[1727411252698,2.1173,2646.5,2646.4,3.36230916]
[1727411252895,0.37781,2646.4,2646.3,1.47312613]
[1727411253196,0.78671,2646.4,2646.3,3.36253558]
[1727411254394,0.78671,2646.4,2646.3,1.47312613]
[1727411254591,0.78671,2646.4,2646.3,3.36247845]
[1727411255398,0.78671,2646.4,2646.2,1.86202613]
[1727411255399,0.37782,2646.3,2646.2,1.86202613]
[1727411255595,1.73782,2646.3,2646.2,3.75131946]
[1727411256394,1.73782,2646.3,2646.2,2.27819333]
[1727411256692,1.73782,2646.3,2646.2,3.75131946]
[1727411257200,1.73782,2646.3,2646.2,2.27819333]
[1727411258397,1.73782,2646.3,2646.2,0.3889]
[1727411258698,1.73782,2646.3,2646.1,1.85562613]
[1727411258895,1.73782,2646.3,2646.1,2.23132613]
[1727411259100,1.73783,2646.3,2646.1,2.23132613]
[1727411259800,0.37784,2646.2,2646.1,2.23132613]
[1727411260101,0.37784,2646.2,2646.1,4.11975892]
[1727411260595,0.37784,2646.2,2646.1,0.7582]
[1727411260800,0.37784,2646.2,2646.1,0.3825]
[1727411260990,1.73783,2646.3,2646.1,0.7582]
[1727411261693,1.36,2646.3,2646.1,0.7582]
[1727411261886,0.79281853,2646.3,2646.1,0.7582]
[1727411263796,1.17063853,2646.3,2646.1,0.7582]
[1727411263997,0.79281853,2646.3,2646.1,0.7582]
[1727411264405,1.17063853,2646.3,2646.1,0.7582]
[1727411264597,0.79281853,2646.3,2646.1,0.7582]
[1727411264900,1.17064853,2646.3,2646.1,0.7582]
[1727411270200,3.6968,2646.5,2646.1,0.7582]
[1727411270402,3.6968,2646.5,2646.3,1.36]
[1727411270403,0.1095,2646.5,2646.3,1.36]
[1727411270601,0.1095,2646.5,2646.4,3.7495355]
[1727411270802,0.1095,2646.5,2646.4,12.1495355]
[1727411272099,0.4873,2646.5,2646.4,12.1495355]
[1727411272805,0.1095,2646.5,2646.4,10.67640937]
[1727411273308,0.4873,2646.5,2646.4,12.1495355]
[1727411273501,0.4873,2646.5,2646.4,10.67640937]
[1727411274612,0.3778,2646.5,2646.4,10.67640937]
[1727411275109,0.3778,2646.5,2646.4,10.67667334]
[1727411275305,0.3778,2646.5,2646.4,8.7897]
[1727411275508,0.3778,2646.5,2646.4,12.14987836]
[1727411275808,0.3778,2646.5,2646.4,10.67675223]
[1727411276210,0.3778,2646.5,2646.4,12.14987836]
[1727411276511,0.3778,2646.5,2646.4,10.67675223]
[1727411277308,0.3778,2646.5,2646.4,12.14987836]
[1727411277511,0.3778,2646.5,2646.4,8.7897]
[1727411279012,0.3778,2646.5,2646.4,10.67720517]
[1727411279202,0.3778,2646.5,2646.4,10.67718282]
[1727411279613,0.3778,2646.5,2646.4,10.67722465]
[1727411280612,0.3778,2646.5,2646.4,10.6772962]
[1727411280915,0.3778,2646.5,2646.4,8.7897]
[1727411281316,0.3778,2646.5,2646.4,10.67747733]
[1727411281814,0.37779,2646.6,2646.4,10.67747733]
[1727411282118,0.37779,2646.6,2646.5,2.25957733]
[1727411282317,0.37779,2646.6,2646.5,2.66767733]
[1727411282511,1.73777,2646.7,2646.5,4.14080346]
[1727411282706,1.73777,2646.7,2646.5,2.25302613]
[1727411282913,1.73777,2646.7,2646.5,0.7799]
[1727411283115,1.36,2646.7,2646.5,0.7799]
[1727411283314,1.36,2646.7,2646.5,2.25302613]
[1727411284619,1.36,2646.7,2646.6,3.36118099]
[1727411284919,1.36,2646.7,2646.6,1.88805486]
[1727411285214,1.36,2646.7,2646.6,3.36118099]
[1727411286215,1.73777,2646.7,2646.6,3.36118099]
[1727411286417,1.36,2646.7,2646.6,1.88805486]
[1727411287217,1.73777,2646.7,2646.6,1.88805486]
[1727411289817,1.73777,2646.7,2646.6,1.88770195]
[1727411292618,1.73777,2646.7,2646.6,3.35971368]
[1727411293223,1.73777,2646.7,2646.6,1.88770195]
[1727411293822,1.73777,2646.7,2646.6,3.35971368]
[1727411294021,1.73777,2646.7,2646.6,1.88770195]
[1727411294626,1.73777,2646.7,2646.5,2.25191173]
[1727411294823,1.73777,2646.7,2646.6,1.88787835]
[1727411296130,1.73777,2646.7,2646.6,1.88777947]
[1727411296632,1.73777,2646.7,2646.5,2.25191173]
[1727411297028,1.73777,2646.7,2646.6,1.88770929]
[1727411299129,1.73777,2646.7,2646.6,3.35972102]
[1727411299329,1.73777,2646.7,2646.6,1.88770929]
[1727411299531,1.73777,2646.7,2646.6,3.35972102]
[1727411300730,1.36,2646.7,2646.6,3.35972102]
[1727411300932,1.73777,2646.7,2646.6,1.88770929]
[1727411301329,1.73777,2646.7,2646.6,3.36079401]
[1727411301529,1.73777,2646.7,2646.6,1.88770929]
[1727411301729,1.73777,2646.7,2646.6,3.36080863]
[1727411301929,1.73777,2646.7,2646.6,3.36076105]
[1727411304929,1.73777,2646.7,2646.6,1.88770929]
[1727411305729,1.73777,2646.7,2646.6,1.89023776]
[1727411306529,1.73777,2646.7,2646.5,0.7799]
[1727411306935,1.72072,2647.0,2646.5,0.7799]
[1727411306936,0.37776,2646.8,2646.5,0.7799]
[1727411308035,0.37775,2646.8,2646.5,0.7799]
[1727411308334,1.36,2646.9,2646.5,0.7799]
[1727411308539,0.78538,2646.7,2646.5,0.7799]
[1727411308735,0.4076,2646.7,2646.5,0.7799]
[1727411309529,0.37778,2646.6,2646.5,0.7799]
[1727411310139,2.14538,2646.7,2646.5,0.7799]
[1727411310334,0.37778,2646.6,2646.5,0.7799]
[1727411311638,0.77588,2646.6,2646.5,0.7799]
[1727411314338,0.4076,2646.7,2646.5,1.76268303]
[1727411314538,0.3962,2646.9,2646.6,2.34278303]
[1727411314734,2.13395,2646.9,2646.8,1.47409615]
[1727411315033,2.13395,2646.9,2646.8,3.36433252]
[1727411315647,2.13395,2646.9,2646.8,3.77323252]
[1727411316241,1.7562,2646.9,2646.8,3.77324017]
[1727411316440,1.7562,2646.9,2646.8,4.23656118]
[1727411318745,0.3962,2646.9,2646.8,4.23656118]
[1727411318949,2.14733,2647.0,2646.8,4.23656118]
[1727411319148,2.14733,2647.0,2646.9,3.76916546]
[1727411319349,1.36,2647.0,2646.9,3.76916546]
[1727411319648,1.73772,2647.0,2646.9,3.76916546]
[1727411319844,3.58552,2647.1,2646.9,3.76916546]
[1727411320148,0.37772,2647.1,2647.0,1.8901846]
[1727411320350,0.37772,2647.1,2647.0,3.36433278]
[1727411320543,0.37772,2647.1,2647.0,1.8901846]
[1727411320744,0.37772,2647.1,2647.0,3.36414792]
[1727411320945,0.7562,2647.2,2647.0,1.8901846]
[1727411321151,0.7562,2647.2,2646.9,2.34207658]
[1727411321152,1.7385,2647.2,2647.1,3.36412938]
[1727411321640,1.7385,2647.2,2647.1,0.98248638]